bitfinex-derivatives/quotes_SOLF0:USTF0_20260121
["timestamp","ask_amount","ask_price","bid_price","bid_amount"]
[1769023744930,6.59057071,129.46,129.36,108.312]
[1769023745223,6.59057071,129.53,129.4,109.57826275]
[1769023745419,6.59057071,129.53,129.41,108.2744]
[1769023745615,6.59057071,129.53,129.45,108.2414]
[1769023745825,6.59057071,129.58,129.46,108.2297]
[1769023746033,6.59057071,129.62,129.5,108.1953]
[1769023746235,6.59057071,129.62,129.53,108.1724]
[1769023746533,6.59057071,129.62,129.51,108.1904]
[1769023746723,6.59057071,129.62,129.5,109.56185123]
[1769023746920,6.59057071,129.59,129.48,108.215]
[1769023747125,6.59057071,129.59,129.47,108.2185]
[1769023747325,6.59057071,129.54,129.45,6.9583]
[1769023747522,6.59057071,129.54,129.42,108.2609]
[1769023747722,6.59057071,129.54,129.43,108.2579]
[1769023747925,6.59057071,129.51,129.39,108.2886]
[1769023748125,6.59057071,129.51,129.36,108.3117]
[1769023748126,6.59057071,129.48,129.36,108.3117]
[1769023748425,6.59057071,129.44,129.32,108.3446]
[1769023748626,6.59057071,129.44,129.34,108.3313]
[1769023748828,6.59057071,129.44,129.33,6.9647]
[1769023749021,6.59057071,129.42,129.29,108.3711]
[1769023749224,6.59057071,129.42,129.3,108.3672]
[1769023749528,6.59057071,129.38,129.27,108.3857]
[1769023749728,6.59057071,129.37,129.27,108.3924]
[1769023749929,6.59057071,129.37,129.28,108.384]
[1769023750133,6.59057071,129.37,129.29,6.9666]
[1769023750331,31.62254942,129.41,129.29,108.3757]
[1769023750630,6.59057071,129.46,129.34,108.3289]
[1769023750825,6.59057071,129.46,129.34,109.97197291]
[1769023751028,6.59057071,129.46,129.35,108.3253]
[1769023751429,6.59057071,129.46,129.37,115.2709]
[1769023751624,6.59057071,129.5,129.38,108.2979]
[1769023751829,6.59057071,129.5,129.39,116.17168373]
[1769023752136,6.59057071,129.5,129.4,14.84128373]
[1769023752339,6.59057071,129.45,129.33,108.3375]
[1769023752634,6.59057071,129.45,129.33,6.68855731]
[1769023752933,6.59057071,129.43,129.31,108.3569]
[1769023753145,6.59057071,129.38,129.26,108.3946]
[1769023753437,6.59057071,129.35,129.23,108.4243]
[1769023753624,6.59057071,129.35,129.25,108.4058]
[1769023753828,6.59057071,129.35,129.24,108.4167]
[1769023754035,13.55487071,129.34,129.22,6.9707]
[1769023754238,6.59057071,129.33,129.22,6.9707]
[1769023754548,133.34327871,129.37,129.18,108.4635]
[1769023754549,6.59057071,129.37,129.26,108.399]
[1769023754729,6.59057071,129.41,129.3,108.3667]
[1769023754940,6.59057071,129.41,129.31,108.3589]
[1769023755135,108.2479,129.45,129.34,108.3324]
[1769023755136,6.59057071,129.45,129.34,108.3324]
[1769023755334,6.59057071,129.45,129.33,108.3419]
[1769023755535,6.59057071,129.45,129.34,108.3316]
[1769023755739,6.59057071,129.45,129.35,115.2885]
[1769023756148,6.59057071,129.45,129.36,108.3093]
[1769023756439,6.59057071,129.45,129.34,108.3316]
[1769023756830,6.59057071,129.45,129.35,6.9636]
[1769023757028,7.29549954,129.44,129.32,7.35092149]
[1769023757329,7.29549954,129.45,129.35,108.3253]
[1769023757642,7.29549954,129.44,129.35,108.3228]
[1769023757933,1.34508349,129.49,129.38,108.2986]
[1769023758126,1.34508349,129.49,129.37,108.3037]
[1769023758336,1.34508349,129.49,129.38,115.2618]
[1769023758530,109.55538349,129.49,129.38,6.9619]
[1769023758835,1.34508349,129.49,129.38,6.9619]
[1769023759134,108.2183,129.48,129.36,6.9632]
[1769023759338,1.34508349,129.49,129.37,108.3063]
[1769023759530,108.2121,129.49,129.36,108.3126]
[1769023759727,108.2168,129.48,129.35,108.3228]
[1769023759933,7.29549954,129.48,129.36,108.3145]
[1769023760125,7.29549954,129.48,129.4,108.2777]
[1769023760330,7.29549954,129.48,129.4,108.2805]
[1769023760634,7.29549954,129.52,129.42,6.9596]
[1769023760943,7.29549954,129.52,129.4,108.2805]
[1769023761327,7.29549954,129.52,129.41,108.271]
[1769023761532,7.29549954,129.52,129.42,108.2658]
[1769023761734,7.29549954,129.52,129.41,108.271]
[1769023761929,14.25039954,129.52,129.4,108.2805]
[1769023762239,14.25039954,129.52,129.24,679.5854]
[1769023762240,1.34443393,129.55,129.42,108.2589]
[1769023762431,115.04125712,129.61,129.37,324.9068]
[1769023762432,7.29549954,129.59,129.47,115.18]
[1769023762635,7.29549954,129.59,129.47,108.2228]
[1769023762834,7.29549954,129.59,129.47,108.2218]
[1769023763037,7.29549954,129.59,129.49,108.2074]
[1769023763238,7.29549954,129.59,129.46,7.35092149]
[1769023763544,7.29549954,129.55,129.43,108.2529]
[1769023763727,7.29549954,129.55,129.44,115.2051]
[1769023763930,7.29549954,129.55,129.44,108.2467]
[1769023764130,7.29549954,129.55,129.46,108.2329]
[1769023764432,7.29549954,129.59,129.49,115.1636]
[1769023764634,7.29549954,129.59,129.5,7.73912694]
[1769023764939,7.29549954,129.59,129.51,7.73912694]
[1769023765140,7.29549954,129.59,129.52,7.73912694]
[1769023765339,7.29549954,129.59,129.46,108.2311]
[1769023765538,7.29549954,129.58,129.46,6.9578]
[1769023765741,7.29549954,129.57,129.45,7.35092149]
[1769023765945,7.29549954,129.55,129.44,6.9588]
[1769023766146,7.29549954,129.59,129.45,7.35092149]
[1769023766341,7.29549954,129.59,129.47,7.35092149]
[1769023766643,7.29549954,129.56,129.44,115.2074]
[1769023766844,7.29549954,129.56,129.43,7.35092149]
[1769023766845,7.29549954,129.54,129.43,7.35092149]
[1769023767047,7.29549954,129.53,129.4,115.62892149]
[1769023767347,14.24969954,129.53,129.41,122.58532149]
[1769023767550,7.29549954,129.53,129.42,108.2655]
[1769023767747,7.29549954,129.53,129.42,6.9595]
[1769023767949,7.29549954,129.53,129.41,115.62522149]
[1769023768142,7.29549954,129.53,129.42,115.61532149]
[1769023768943,7.29549954,129.53,129.42,7.35092149]
[1769023769246,115.47189954,129.53,129.42,7.35092149]
[1769023769540,7.29549954,129.53,129.42,7.35092149]
[1769023769747,7.29549954,129.52,129.42,115.61552149]
[1769023769934,432.4759,129.6,129.42,115.61552149]
[1769023769935,1.34375905,129.62,129.51,6.9547]
[1769023770248,108.0673,129.66,129.55,7.35092149]
[1769023770437,16.56641381,129.7,129.56,108.1435]
[1769023770741,108.0557,129.68,129.55,115.50662149]
[1769023770941,108.0423,129.69,129.56,108.1485]
[1769023771143,109.37682572,129.7,129.55,115.50662149]
[1769023771339,124.57971381,129.73,129.6,108.1156]
[1769023771536,108.0253,129.71,129.58,7.35092149]
[1769023771842,114.962,129.72,129.59,108.1247]
[1769023772045,108.87665643,129.7,129.58,7.35092149]
[1769023772242,16.56641381,129.73,129.59,7.35092149]
[1769023772545,108.88425643,129.69,129.56,115.49552149]
[1769023772747,108.88455643,129.69,129.57,7.35092149]
[1769023772945,108.0519,129.68,129.55,115.50212149]
[1769023773145,0.95551475,129.68,129.56,115.49912149]
[1769023773347,7.90181475,129.68,129.56,7.35092149]
[1769023773539,115.95221475,129.68,129.56,7.35092149]
[1769023773946,6.9469,129.67,129.56,7.35092149]
[1769023774144,108.0336,129.7,129.59,7.35092149]
[1769023774349,1.06711137,129.69,129.59,7.35092149]
[1769023774547,8.01301137,129.69,129.59,7.35092149]
[1769023775344,108.022,129.72,129.59,7.35092149]
[1769023775543,108.0354,129.7,129.59,7.35092149]
[1769023775944,114.9698,129.71,129.59,7.35092149]
[1769023776140,108.0591,129.67,129.55,7.35092149]
[1769023776345,109.35733306,129.66,129.55,7.35092149]
[1769023776541,1.28633306,129.63,129.51,7.35092149]
[1769023776742,109.38623306,129.62,129.51,7.35092149]
[1769023777155,109.46974369,129.65,129.52,7.35092149]
[1769023777350,108.1007,129.62,129.53,7.79108157]
[1769023777571,1.39394369,129.6,129.48,7.35092149]
[1769023777949,108.1165,129.6,129.51,7.35092149]
[1769023778453,6.9511,129.59,129.51,7.35092149]
[1769023778755,108.1333,129.58,129.47,7.35092149]
[1769023778951,108.1333,129.58,129.41,108.2694]
[1769023778952,108.169,129.54,129.43,7.35092149]
[1769023779153,108.1333,129.58,129.44,108.2485]
[1769023779458,108.1333,129.58,129.35,7.35092149]
[1769023779459,108.2168,129.48,129.35,7.35092149]
[1769023779753,108.186,129.52,129.35,7.35092149]
[1769023779953,108.2086,129.49,129.39,7.35092149]
[1769023780153,108.2168,129.48,129.39,7.35092149]
[1769023780455,108.2114,129.49,129.37,6.9625]
[1769023780757,108.1932,129.51,129.4,7.35092149]
[1769023780948,6.9549,129.52,129.41,7.35092149]
[1769023781150,108.193,129.51,129.41,7.35092149]
[1769023781448,6.9565,129.49,129.41,7.35092149]
[1769023781654,108.209,129.49,129.41,7.35092149]
[1769023782250,108.2358,129.46,129.33,108.3397]
[1769023782450,168.35627682,129.68,129.28,341.71711381]
[1769023782655,108.228,129.47,129.34,108.3335]
[1769023782955,108.2421,129.45,129.32,108.3438]
[1769023783262,108.2421,129.45,129.31,108.3547]
[1769023783449,108.2184,129.48,129.31,108.3547]
[1769023783450,6.9575,129.47,129.36,6.9629]
[1769023783959,108.1735,129.54,129.4,108.2801]
[1769023784150,16.56641381,129.6,129.39,108.2885]
[1769023784151,108.1348,129.58,129.46,7.35092149]
[1769023784852,108.1334,129.58,129.46,7.35092149]
[1769023785459,6.9522,129.57,129.46,14.30842149]
[1769023785753,108.1419,129.57,129.46,7.35092149]
[1769023785942,6.9555,129.51,129.42,9.81108295]
[1769023786656,108.1778,129.53,129.42,9.81108295]
[1769023786657,6.9559,129.5,129.42,9.81108295]
[1769023787160,6.9555,129.51,129.42,9.81108295]
[1769023787451,108.1902,129.52,129.42,9.81108295]
[1769023787658,108.2093,129.49,129.37,9.81108295]
[1769023787960,6.9576,129.47,129.37,9.81108295]
[1769023788363,6.9575,129.47,129.37,9.81108295]
[1769023788566,108.2304,129.47,129.37,9.81108295]
[1769023789271,6.9585,129.45,129.37,9.81108295]
[1769023789454,108.2196,129.48,129.37,9.81108295]
[1769023789766,6.9565,129.49,129.39,16.77248295]
[1769023789962,6.9565,129.49,129.4,7.72772942]
[1769023790157,6.9565,129.49,129.39,16.77248295]
[1769023790158,6.956,129.5,129.41,7.72772942]
[1769023790353,6.956,129.5,129.42,7.72772942]
[1769023790658,6.956,129.5,129.39,9.81108295]
[1769023790659,108.1426,129.57,129.44,9.81108295]
[1769023790866,108.1426,129.57,129.45,17.53881237]
[1769023791057,108.1426,129.57,129.46,7.72772942]
[1769023791258,108.1321,129.59,129.47,17.53881237]
[1769023791467,108.1248,129.6,129.49,9.81108295]
[1769023791764,6.9522,129.57,129.5,7.72772942]
[1769023791963,6.9522,129.57,129.51,7.72772942]
[1769023792174,108.142,129.57,129.52,2.942e-05]
[1769023792478,108.142,129.57,129.39,449.71341381]
[1769023792479,108.1666,129.54,129.44,9.81108295]
[1769023792657,108.1666,129.54,129.31,23.51]
[1769023792658,108.1941,129.51,129.4,9.81108295]
[1769023792857,6.957,129.48,129.38,6.9617]
[1769023793363,108.2117,129.49,129.37,9.81108295]
[1769023793560,108.1434,129.57,129.43,9.81108295]
[1769023793753,108.1434,129.57,129.42,108.261]
[1769023793754,108.1697,129.54,129.44,9.81108295]
[1769023794061,108.1503,129.56,129.45,9.81108295]
[1769023794269,6.9533,129.55,129.45,9.81108295]
[1769023794557,108.1354,129.58,129.47,9.81108295]
[1769023794863,108.142,129.57,129.47,9.81108295]
[1769023795066,108.1673,129.54,129.43,9.81108295]
[1769023795753,6.9544,129.53,129.43,9.81108295]
[1769023796150,115.1295,129.53,129.43,9.81108295]
[1769023796357,108.1917,129.51,129.43,9.81108295]
[1769023796555,108.1837,129.52,129.43,9.81108295]
[1769023796764,108.1588,129.55,129.43,9.81108295]
[1769023796765,108.1671,129.54,129.43,9.81108295]
[1769023797156,108.1477,129.57,129.43,9.81108295]
[1769023797157,108.1511,129.56,129.43,9.81108295]
[1769023797358,108.1354,129.58,129.48,9.81108295]
[1769023797359,108.1346,129.58,129.48,9.81108295]
[1769023797663,108.1255,129.59,129.48,9.81108295]
[1769023797863,6.9518,129.58,129.48,9.81108295]
[1769023798167,108.115,129.61,129.48,9.81108295]
[1769023798362,108.1174,129.6,129.48,9.81108295]
[1769023798569,108.1421,129.57,129.45,9.81108295]
[1769023798770,108.1543,129.56,129.45,9.81108295]
[1769023799065,108.1669,129.54,129.45,9.81108295]
[1769023799264,6.9539,129.54,129.45,9.81108295]
[1769023799469,108.1756,129.53,129.41,10.55217521]
[1769023800166,108.1529,129.56,129.43,10.55217521]
[1769023800367,108.1593,129.55,129.44,10.55217521]
[1769023800556,108.1531,129.56,129.4,10.55217521]
[1769023800756,108.1584,129.55,129.43,10.55217521]
[1769023800959,108.1682,129.54,129.43,10.55217521]
[1769023801460,108.1175,129.6,129.49,10.55217521]
[1769023801656,108.1787,129.53,129.38,108.2955]
[1769023801857,6.9562,129.49,129.39,10.55217521]
[1769023802052,108.2091,129.49,129.39,10.55217521]
[1769023802257,6.9558,129.5,129.41,10.55217521]
[1769023802467,108.2084,129.49,129.41,10.55217521]
[1769023802669,108.2177,129.48,129.37,10.55217521]
[1769023802870,108.2505,129.44,129.33,10.55217521]
[1769023803057,108.2856,129.4,129.29,10.55217521]
[1769023803257,108.293,129.39,129.26,118.95237521]
[1769023803563,16.56641381,129.41,129.3,10.55217521]
[1769023803767,108.2558,129.44,129.32,10.55217521]
[1769023803963,6.9599,129.43,129.32,17.51717521]
[1769023804164,108.2632,129.43,129.33,6.79889462]
[1769023804357,108.2632,129.43,129.28,10.55217521]
[1769023804358,108.2632,129.43,129.34,6.79889462]
[1769023804562,108.2676,129.42,129.3,10.55217521]
[1769023804968,108.2558,129.44,129.3,118.91917521]
[1769023805173,108.2777,129.41,129.3,10.55217521]
[1769023805473,108.2932,129.39,129.26,10.55217521]
[1769023805664,16.56641381,129.41,129.29,10.55217521]
[1769023805665,6.9607,129.41,129.29,10.55217521]
[1769023805865,108.2585,129.43,129.3,118.91667521]
[1769023806170,6.96,129.42,129.31,10.55217521]
[1769023806468,115.227,129.42,129.31,10.55217521]
[1769023806669,6.96,129.42,129.31,10.55217521]
[1769023807172,6.9591,129.44,129.33,10.55217521]
[1769023807372,108.228,129.47,129.34,10.55217521]
[1769023807570,6.958,129.46,129.34,125.84927521]
[1769023807867,6.958,129.46,129.35,10.55217521]
[1769023808072,108.2519,129.44,129.35,10.55217521]
[1769023808272,108.2526,129.44,129.33,10.55217521]
[1769023808467,108.2434,129.45,129.33,10.55217521]
[1769023808873,6.9585,129.45,129.34,10.55217521]
[1769023809272,6.9581,129.46,129.35,10.55217521]
[1769023809464,6.9581,129.46,129.32,108.3477]
[1769023809465,108.2468,129.45,129.32,10.55217521]
[1769023809768,108.2516,129.44,129.33,10.55217521]
[1769023809968,108.2232,129.48,129.34,10.55217521]
[1769023810179,108.2337,129.46,129.34,10.55217521]
[1769023810373,108.2362,129.46,129.35,10.55217521]
[1769023810562,108.2287,129.47,129.35,10.55217521]
[1769023811476,108.2528,129.44,129.35,10.55217521]
[1769023811669,108.2442,129.45,129.35,10.55217521]
[1769023811874,108.2442,129.45,129.31,108.3559]
[1769023811875,108.2839,129.4,129.31,10.55217521]
[1769023812075,108.2766,129.41,129.31,10.55217521]
[1769023812375,108.2679,129.42,129.31,10.55217521]
[1769023812873,108.2854,129.4,129.31,10.55217521]
[1769023813064,108.2786,129.41,129.31,10.55217521]
[1769023813265,108.2786,129.41,129.27,6.9677]
[1769023813266,6.9629,129.37,129.27,6.9677]
[1769023813465,6.9629,129.37,129.25,118.96127521]
[1769023813671,115.2721,129.37,129.25,10.55217521]
[1769023813979,108.2935,129.39,129.28,10.55217521]
[1769023814276,108.2786,129.41,129.28,10.55217521]
[1769023814479,108.2933,129.39,129.28,10.55217521]
[1769023814671,108.2836,129.4,129.28,10.55217521]
[1769023815270,6.9624,129.38,129.28,17.51967521]
[1769023815476,108.2786,129.41,129.29,10.55217521]
[1769023815776,108.2639,129.43,129.29,10.55217521]
[1769023815777,108.2669,129.42,129.32,12.87522014]
[1769023816074,108.2444,129.45,129.33,12.87522014]
[1769023816376,108.2675,129.42,129.31,6.9657]
[1769023816675,108.2876,129.4,129.29,12.87522014]
[1769023816878,108.3011,129.38,129.29,12.87522014]
[1769023817466,6.9618,129.39,129.29,12.87522014]
[1769023818570,108.3006,129.38,129.29,12.87522014]
[1769023818877,108.2862,129.4,129.29,12.87522014]
[1769023819075,108.2707,129.42,129.29,12.87522014]
[1769023819372,108.3221,129.36,129.25,12.87522014]
[1769023819573,108.3221,129.36,129.2,108.4446]
[1769023819574,6.9657,129.32,129.23,6.9699]
[1769023819777,108.3459,129.33,129.23,12.87522014]
[1769023819980,108.3256,129.35,129.23,12.87522014]
[1769023820175,6.9648,129.34,129.24,6.9695]
[1769023820377,108.3258,129.35,129.25,12.87522014]
[1769023820673,108.3107,129.37,129.25,12.87522014]
[1769023820868,108.3029,129.38,129.25,12.87522014]
[1769023821072,108.3091,129.37,129.25,12.87522014]
[1769023821265,6.9635,129.36,129.26,12.87522014]
[1769023821472,108.3123,129.37,129.26,12.87522014]
[1769023822367,108.3287,129.35,129.26,12.87522014]
[1769023822571,108.3123,129.37,129.26,12.87522014]
[1769023822777,108.3424,129.33,129.22,12.87522014]
[1769023822971,6.9661,129.31,129.22,19.84582014]
[1769023823171,108.3181,129.36,129.23,12.87522014]
[1769023823477,108.3483,129.33,129.24,12.87522014]
[1769023824076,6.9651,129.33,129.24,12.87522014]
[1769023824279,108.3181,129.36,129.24,12.87522014]
[1769023824677,6.9641,129.35,129.25,6.9689]
[1769023824874,108.3222,129.36,129.21,12.87522014]
[1769023825073,108.3265,129.35,129.23,12.87522014]
[1769023825278,108.3385,129.34,129.23,12.87522014]
[1769023825577,108.3426,129.33,129.23,12.87522014]
[1769023825784,108.3928,129.27,129.15,12.87522014]
[1769023826075,108.3965,129.27,129.15,12.87522014]
[1769023826282,6.9698,129.24,129.15,19.84952014]
[1769023826767,6.9693,129.25,129.16,6.9738]
[1769023827166,6.9698,129.24,129.15,12.87522014]
[1769023827379,108.3759,129.29,129.17,12.87522014]
[1769023827874,108.3943,129.27,129.17,12.87522014]
[1769023828381,108.3855,129.28,129.17,12.87522014]
[1769023828382,108.3716,129.3,129.17,12.87522014]
[1769023828575,108.4057,129.26,129.13,12.87522014]
[1769023828776,108.4057,129.26,129.15,6.9744]
[1769023828974,108.377,129.29,129.15,121.36112014]
[1769023829182,108.402,129.26,129.16,12.87522014]
[1769023829576,6.9704,129.23,129.16,12.87522014]
[1769023830175,108.402,129.26,129.16,12.87522014]
[1769023830482,108.402,129.26,129.12,108.5152]
[1769023830483,108.4181,129.24,129.12,12.87522014]
[1769023830781,6.9705,129.23,129.14,6.9749]
[1769023831082,108.3852,129.28,129.16,12.87522014]
[1769023831382,6.9695,129.25,129.15,12.87522014]
[1769023831685,108.4009,129.26,129.15,12.87522014]
[1769023831984,108.3939,129.27,129.16,12.87522014]
[1769023832193,108.3939,129.27,129.12,108.5123]
[1769023832194,108.4198,129.24,129.12,12.87522014]
[1769023832385,108.401,129.26,129.13,12.87522014]
[1769023832678,108.4192,129.24,129.13,12.87522014]
[1769023833272,108.4251,129.24,129.13,12.87522014]
[1769023833476,108.4262,129.23,129.13,12.87522014]
[1769023833878,6.972,129.2,129.13,12.87522014]
[1769023834086,108.401,129.26,129.13,12.87522014]
[1769023834282,108.4195,129.24,129.13,12.87522014]
[1769023834786,108.4017,129.26,129.13,12.87522014]
[1769023834987,108.4112,129.25,129.13,12.87522014]
[1769023835279,6.9695,129.25,129.15,6.9743]
[1769023835482,6.9695,129.25,129.15,12.87522014]
[1769023835685,108.3808,129.29,129.16,121.35622014]
[1769023835883,108.3808,129.29,129.17,12.87522014]
[1769023836182,108.3926,129.27,129.13,12.87522014]
[1769023836383,108.403,129.26,129.15,6.9744]
[1769023836688,108.3926,129.27,129.15,12.87522014]
[1769023836880,6.9681,129.27,129.16,12.87522014]
[1769023837085,6.9681,129.27,129.17,12.87522014]
[1769023837285,108.3971,129.27,129.14,12.87522014]
[1769023837591,108.4187,129.24,129.14,19.85012014]
[1769023837782,108.4079,129.26,129.14,19.85012014]
[1769023837783,108.4079,129.26,129.15,12.87522014]
[1769023837982,108.4105,129.25,129.15,12.87522014]
[1769023838478,62.31868694,129.29,129.17,12.87522014]
[1769023838479,131.8885,129.29,129.17,12.87522014]
[1769023838786,108.4102,129.25,129.17,12.87522014]
[1769023838985,108.3948,129.27,129.17,12.87522014]
[1769023839184,6.9698,129.24,129.17,12.87522014]
[1769023839584,108.4304,129.23,129.13,12.87522014]
[1769023839886,108.4381,129.22,129.1,12.87522014]
[1769023840073,108.4304,129.23,129.12,12.87522014]
[1769023840475,23.51,129.28,129.18,12.87522014]
[1769023840691,108.3757,129.29,129.18,12.87522014]
[1769023841081,108.3849,129.28,129.18,12.87522014]
[1769023841581,108.3757,129.29,129.18,12.87522014]
[1769023841779,6.9679,129.28,129.18,12.87522014]
[1769023841983,108.3731,129.3,129.18,12.87522014]
[1769023842188,108.3481,129.33,129.22,12.87522014]
[1769023842189,6.9655,129.32,129.22,12.87522014]
[1769023842380,108.3631,129.31,129.19,12.87522014]
[1769023842685,108.3601,129.31,129.19,12.87522014]
[1769023842889,114.61311943,129.34,129.21,12.87522014]
[1769023843086,114.61311943,129.34,129.22,12.87522014]
[1769023843287,324.7821,129.43,129.27,12.87522014]
[1769023843483,6.27611943,129.39,129.27,12.87522014]
[1769023843680,7.11706275,129.51,129.33,108.3368]
[1769023843892,6.27611943,129.49,129.35,121.19792014]
[1769023844079,6.27611943,129.49,129.36,12.87522014]
[1769023844281,108.2282,129.47,129.36,12.87522014]
[1769023844679,108.1384,129.58,129.42,12.87522014]
[1769023844882,132.93906944,129.58,129.44,12.87522014]
[1769023845085,6.9519,129.57,129.44,12.87522014]
[1769023845686,115.0945,129.57,129.44,12.87522014]
[1769023845882,115.0945,129.57,129.37,108.303]
[1769023845883,108.091,129.64,129.49,15.14626802]
[1769023846084,108.0759,129.65,129.51,15.14626802]
[1769023846390,108.0844,129.64,129.51,15.14626802]
[1769023846592,108.1285,129.59,129.47,15.14626802]
[1769023847085,108.1169,129.6,129.43,15.14626802]
[1769023847086,108.1528,129.56,129.43,15.14626802]
[1769023847789,108.144,129.57,129.43,123.39676802]
[1769023847990,108.1423,129.57,129.44,108.2482]
[1769023848189,115.1053,129.56,129.43,15.14626802]
[1769023848391,108.1689,129.54,129.43,15.14626802]
[1769023848592,108.1619,129.55,129.43,15.14626802]
[1769023848794,6.9536,129.54,129.43,15.14626802]
[1769023849094,24.80566944,129.6,129.46,123.37556802]
[1769023849297,24.80566944,129.6,129.47,123.36716802]
[1769023849486,132.89216944,129.64,129.51,15.14626802]
[1769023849689,108.0865,129.64,129.51,15.14626802]
[1769023849894,108.17490766,129.64,129.51,15.14626802]
[1769023850095,0.08840766,129.63,129.51,22.10096802]
[1769023850291,6.9485,129.64,129.51,15.14626802]
[1769023850493,7.03500766,129.67,129.54,15.14626802]
[1769023850699,0.08840766,129.67,129.55,15.14626802]
[1769023851095,0.17289539,129.71,129.57,123.28446802]
[1769023851297,0.17289539,129.71,129.58,123.27666802]
[1769023851496,0.17289539,129.71,129.6,15.14626802]
[1769023851795,108.17599539,129.74,129.61,15.14626802]
[1769023851996,400.4004,129.77,129.64,15.14626802]
[1769023851997,107.9804,129.77,129.64,15.14626802]
[1769023852187,107.9622,129.79,129.67,15.14626802]
[1769023852393,107.997,129.75,129.63,15.14626802]
[1769023852592,0.25616498,129.76,129.63,15.14626802]
[1769023852793,107.9937,129.75,129.63,15.14626802]
[1769023852993,108.0026,129.74,129.63,15.14626802]
[1769023853298,114.9454,129.74,129.63,15.14626802]
[1769023853600,108.0117,129.73,129.63,15.14626802]
[1769023853795,108.0117,129.73,129.59,15.14626802]
[1769023853796,6.9445,129.71,129.59,15.14626802]
[1769023854200,114.9701,129.71,129.59,15.14626802]
[1769023854496,108.35899185,129.72,129.61,15.14626802]
[1769023854693,108.0446,129.69,129.57,15.14626802]
[1769023854899,108.0325,129.71,129.58,15.14626802]
[1769023855090,108.0364,129.7,129.58,15.14626802]
[1769023855394,0.33829185,129.72,129.59,15.14626802]
[1769023855600,7.44194896,129.76,129.64,15.14626802]
[1769023855798,107.9698,129.78,129.65,15.14626802]
[1769023855992,10.15351523,129.8,129.65,15.14626802]
[1769023856392,108.539195,129.79,129.65,15.14626802]
[1769023856599,0.578495,129.78,129.65,15.14626802]
[1769023856794,108.440895,129.91,129.76,15.14626802]
[1769023856995,0.65583687,129.89,129.76,15.14626802]
[1769023857390,0.65583687,129.89,129.77,15.14626802]
[1769023857595,25.46150631,129.93,129.8,107.947]
[1769023857788,0.65583687,129.92,129.79,107.9543]
[1769023858201,0.8288013,129.88,129.74,107.9954]
[1769023858397,0.8288013,129.88,129.71,108.0243]
[1769023858598,0.8288013,129.87,129.73,108.0027]
[1769023858799,0.8288013,129.87,129.75,107.9882]
[1769023858996,109.17181736,129.95,129.75,107.9882]
[1769023858997,0.98172924,129.97,129.82,123.07666802]
[1769023859202,0.98172924,129.96,129.84,114.8487]
[1769023859398,0.98172924,129.96,129.83,17.64332063]
[1769023859796,0.98172924,129.96,129.84,107.9136]
[1769023860006,0.98172924,129.96,129.85,107.9051]
[1769023860201,1.05451143,130.0,129.87,107.8874]
[1769023860400,1.05451143,129.95,129.81,107.936]
[1769023860600,1.05451143,129.95,129.83,107.9214]
[1769023860798,1.05451143,129.95,129.81,107.936]
[1769023860995,1.05451143,129.95,129.8,114.8852]
[1769023860996,1.12629758,129.87,129.73,108.0016]
[1769023861208,1.12629758,129.83,129.7,108.0269]
[1769023861500,1.12629758,129.81,129.74,107.9945]
[1769023861703,107.8718,129.9,129.73,108.003]
[1769023861704,1.12629758,129.86,129.78,107.9613]
[1769023861895,132.65186944,129.93,129.78,107.9602]
[1769023862098,1.19706045,129.92,129.81,107.939]
[1769023862404,1.19706045,129.89,129.8,107.9463]
[1769023862599,24.80566944,129.9,129.78,107.9632]
[1769023862600,1.19706045,129.92,129.78,125.60652063]
[1769023862801,26.00272989,129.96,129.86,107.895]
[1769023863002,26.00272989,129.96,129.88,107.8773]
[1769023863003,1.19706045,129.96,129.88,107.8773]
[1769023863301,1.19706045,129.96,129.87,107.8876]
[1769023863500,1.19706045,129.96,129.86,107.8972]
[1769023863698,1.19706045,129.96,129.83,107.9223]
[1769023863908,1.26665294,129.95,129.81,107.9362]
[1769023864112,1.33526763,129.91,129.79,107.953]
[1769023864313,1.33526763,129.91,129.8,6.9396]
[1769023864611,1.33526763,129.9,129.77,107.9742]
[1769023864909,1.33526763,129.9,129.78,114.9031]
[1769023865097,1.33526763,129.9,129.79,107.9548]
[1769023865302,293.01526763,129.9,129.78,107.9627]
[1769023865611,1.40289229,129.88,129.76,107.9749]